Cogmind - Beta 13 @@@ ROGUE MODE // 2024.04.16 @ 18:28:21 Player: Cherman0 Result: Destroyed by D-53 Grenadier with Mini Grenade Launcher Performance ------------- Evolutions (0) 0 Regions Visited (2) 400 Robots Destroyed (25) 125 Value Destroyed (495) 495 Prototype IDs (5) 100 Alien Tech Used (0) 0 Bonus (0) 0 TOTAL SCORE: 1120 Bonus ------- None Cogmind --------- Core Integrity 0/250 Matter 63/300 Energy 30/265 System Corruption 1% Temperature Cool (0) Movement Treading (480) Ox4 Location -10/Mines Parts ------- > --- POWER (1) -------- Improved Ion Engine > --- PROPULSION (2) --- Light Treads > --- UTILITY (2) ------ Huge Storage Unit > --- WEAPON (2) ------- Shotgun > --- INVENTORY (25) --- Improved Ion Engine Improved Ion Engine Light Treads Light Treads Improved Treads Improved Treads Improved Treads Improved Treads Improved Treads Improved Treads Improved Treads High-capacity Matter Pod (0) Structural Scanner Seismic Detector Shield Generator Shield Generator Shield Generator Sensor Drone Bay (20/20) Shotgun Shotgun Light Cannon Peak State ------------ > --- POWER ------------ Improved Ion Engine > --- PROPULSION ------- Light Treads Light Treads > --- UTILITY ---------- Huge Storage Unit Sensor Drone Bay > --- WEAPON ----------- Shotgun Grenade Launcher > --- INVENTORY -------- Improved Ion Engine Improved Ion Engine Improved Ion Engine Light Treads Light Treads Improved Treads Improved Treads Improved Treads Improved Treads Improved Treads Improved Treads Improved Treads Improved Treads High-capacity Matter Pod Structural Scanner Seismic Detector Shield Generator Shield Generator Shield Generator Shield Generator Shotgun Shotgun Shotgun Light Cannon [Rating: 20] Favorites ----------- Power Improved Ion Engine Engine Improved Ion Engine Propulsion Light Treads Treads Light Treads Leg Aluminum Leg Utility Seismic Detector Device Seismic Detector Storage Huge Storage Unit Weapon Shotgun Ballistic Gun Shotgun Launcher Grenade Launcher Build | -11 -10 -10 ------- Run | Yrd Mat Min Slots Evolved . | . . . Power . | . . . Propulsion . | . . . Utility . | . . . Weapon . | . . . Parts Attached 28 | 1 21 6 Power 2 | . 1 1 Engine 2 | . 1 1 Core . | . . . Reactor . | . . . Propulsion 12 | . 11 1 Treads 12 | . 11 1 Leg . | . . . Wheel . | . . . Hover . | . . . Flight . | . . . Utility 5 | 1 2 2 Device 3 | 1 . 2 Storage 2 | . 2 . Processor . | . . . Hackware . | . . . Protection . | . . . Artifact . | . . . Weapon 9 | . 7 2 Energy Gun . | . . . Energy Cannon . | . . . Ballistic Gun 6 | . 5 1 Ballistic Cannon . | . . . Launcher 3 | . 2 1 Special Weapon . | . . . Impact Weapon . | . . . Slashing Weapon . | . . . Piercing Weapon . | . . . Special Melee Weapon . | . . . Unidentified Prototypes 1 | . . 1 Parts Lost 6 | . . 6 Power 1 | . . 1 Propulsion 2 | . . 2 Utility 1 | . . 1 Weapon 2 | . . 2 Highest Loss Streak 6 | . . 6 To Critical Strikes . | . . . Average Slot Usage (%) 99 | . 99 100 Engine 14 | . 14 14 Treads 27 | . 27 28 Device 14 | . 14 14 Storage 14 | . 14 14 Ballistic Gun 23 | . 27 14 Launcher 4 | . . 14 Naked Turns . | . . . Heaviest Build 107 | 13 94 107 Greatest Support 46 | 20 46 43 Greatest Overweight (x) 4 | . 4 2 Average Overweight (x) 1 | . 1 2 Largest Inventory Capacity 25 | 8 25 25 Average Capacity 21 | 8 20 25 Most Carried 24 | 7 22 24 Average Carried 15 | 6 13 22 Final Capacity 25 | 8 25 25 Final Carried 22 | 7 22 21 Class Distribution -------------------- 100% | Mutant Dominant Class ---------------- Mutant | -10/Materials Mutant | -10/Mines Resources | -11 -10 -10 ----------- Run | Yrd Mat Min Matter Collected 813 | 276 390 147 Remotely . | . . . Salvage Created 698 | 115 374 209 Parts 42 | 4 21 17 Haulers Intercepted . | . . . Recyclers Shooed 1 | . . 1 Parts Field Recycled . | . . . Retrieved Matter . | . . . Parts Self-Destructed . | . . . Prevented . | . . . Kills | -11 -10 -10 ------- Run | Yrd Mat Min Combat Hostiles Destroyed 30 | . 12 18 Guns 16 | . 12 4 AOE 14 | . . 14 Classes Destroyed 8 | 2 3 3 Worker 1 | . . 1 Builder 1 | . . 1 Tunneler 1 | 1 . . Recycler 2 | 1 . 1 Watcher 3 | . 3 . Swarmer 8 | . 3 5 Grunt 9 | . 9 . Assembled 13 | . . 13 Best Kill Streak 13 | 1 5 13 Combat Bots Only 13 | . 5 13 Max Kills in Single Turn 4 | 1 1 4 Gunslinging . | . . . Exploded 4 | . . 4 Melee . | . . . Uniques/NPCs Destroyed . | . . . Combat | -11 -10 -10 -------- Run | Yrd Mat Min Hostile Shots Fired 90 | . 40 50 Missed 17 | . 8 9 Damage Taken 1460 | . 382 1078 Core 258 | . 46 212 Absorbed by Shields 61 | . . 61 Regen/Repaired (Parts) 63 | . 63 . Core Remaining (%) 100 | 100 . . Volleys Fired 78 | 15 44 19 Largest 2 | 2 2 1 Hottest 46 | 40 46 30 Shots Fired 138 | 30 87 21 Gun 130 | 30 86 14 Cannon . | . . . Launcher 8 | . 1 7 Special . | . . . Kinetic 130 | 30 86 14 Thermal . | . . . Explosive 8 | . 1 7 Electromagnetic . | . . . Robot Hit Streak 10 | 3 10 6 Robot Miss Streak 7 | 5 7 6 Penetration Max . | . . . Secondary Targets . | . . . Shots Hit Robots 90 | 16 60 14 Core Hits 72 | 3 31 38 Critical Kills . | . . . Critical Parts Destroyed . | . . . Critical Strikes . | . . . Melee Attacks . | . . . Impact . | . . . Slashing . | . . . Piercing . | . . . Sneak Attacks . | . . . Combat Hostiles . | . . . Follow-up Attacks . | . . . Damage Inflicted 2030 | 215 876 939 Guns 1224 | 196 857 171 Cannons . | . . . Explosions 768 | . . 768 Melee . | . . . Ramming 38 | 19 19 . Kinetic 1224 | 196 857 171 Thermal . | . . . Explosive 768 | . . 768 Electromagnetic . | . . . Impact . | . . . Slashing . | . . . Piercing . | . . . Highest Corruption 1 | . 1 1 Average Corruption 1 | . 1 1 Corruption Purged . | . . . Corruption Blocked . | . . . Effects 36 | . 24 12 Message Errors 6 | . 4 2 Matter Fused 8 | . 5 3 Heat Flow Errors 3 | . 2 1 Energy Discharges 3 | . 3 . Parts Fused 2 | . 1 1 Data Loss (minor) 5 | . 4 1 Data Loss (major) 1 | . 1 . Misfires 4 | . 2 2 Alerts 4 | . 2 2 Overload Shots . | . . . Overflow Damage 19 | . . 19 Projectiles . | . . . Explosions 19 | . . 19 Melee . | . . . Knockbacks . | . . . Impact . | . . . Kinetic . | . . . Secondary . | . . . Self-Inflicted Damage 61 | . . 61 Shots 3 | . . 3 Rammed 2 | . 2 . Targets Rammed 8 | 6 2 . Kicked 6 | 6 . . Crushed . | . . . Highest Temperature 185 | . 185 117 Average Temperature 32 | . 30 39 Received Heat Transfer 214 | . 174 40 Siege Activations . | . . . Robots Corrupted . | . . . Combat Hostiles . | . . . Parts Fried . | . . . Impact Corruptions . | . . . Robots Melted . | . . . Combat Hostiles . | . . . Parts Melted . | . . . Heat Transferred . | . . . Parts Sabotaged . | . . . Parts Stolen . | . . . Parts Stripped . | . . . Power Chain Reactions . | . . . Alert | -11 -10 -10 ------- Run | Yrd Mat Min Peak Influence 248 | 10 248 77 Initial 6 | . 6 . Average 58 | 6 69 32 Maximum Alert Level 1 | . 1 . Low Security (%) 95 | 100 93 100 Level 1 4 | . 6 . Level 2 . | . . . Level 3 . | . . . Level 4 . | . . . Level 5 . | . . . High Security . | . . . Max Security . | . . . Squads Dispatched 4 | . 4 . Investigation 2 | . 2 . Extermination . | . . . Reinforcement 2 | . 2 . Assault . | . . . Garrison . | . . . Intercept . | . . . Searches Triggered . | . . . Construction Impeded . | . . . Haulers Reinforced . | . . . Active Scanning Responses . | . . . Cargo Convoy Interrupts . | . . . Stealth | -11 -10 -10 --------- Run | Yrd Mat Min Distress Signals 2 | . 2 . Communications Jammed . | . . . Distress Signals . | . . . Times Spotted 47 | . 24 23 Peak Tracking Total 11 | . 3 11 Tactical Retreats 2 | . 1 1 Traps | -11 -10 -10 ------- Run | Yrd Mat Min Traps Triggered 1 | . 1 . Indirectly . | . . . Trap Hack Attempts . | . . . Triggered . | . . . Disarmed . | . . . Reprogrammed . | . . . Reused . | . . . Traps Extracted . | . . . Installed . | . . . Triggered . | . . . Machines | -11 -10 -10 ---------- Run | Yrd Mat Min Machines Disabled 3 | . . 3 Max in Single Turn 2 | . . 2 Machines Repaired . | . . . Machines Dismantled . | . . . Machines Sabotaged . | . . . Overloaded Fab Kills . | . . . Hacking | -11 -10 -10 --------- Run | Yrd Mat Min Machines Accessed 10 | . 9 1 Terminals 7 | . 7 . Fabricators . | . . . Repair Stations 1 | . 1 . Recycling Units 1 | . 1 . Scanalyzers . | . . . Garrison Access . | . . . Total Hacks 34 | . 33 1 Successful 16 | . 15 1 Failed 18 | . 18 . Catastrophic 2 | . 2 . Database Lockouts . | . . . Manual 17 | . 17 . Terminals 25 | . 25 . Fabricators . | . . . Repair Stations 4 | . 4 . Recycling Units 4 | . 4 . Scanalyzers . | . . . Garrison Access . | . . . Terminal Hacks 7 | . 6 1 Robot Analysis 1 | . 1 . Prototype ID Bank 2 | . 2 . Open Door 1 | . . 1 Terminal Index 1 | . 1 . Locate Traps 1 | . 1 . Hauler Manifests 1 | . 1 . Fabricator Hacks . | . . . Repair Station Hacks 3 | . 3 . Scan Component 2 | . 2 . Repair 1 | . 1 . Recycling Unit Hacks . | . . . Scanalyzer . | . . . Garrison Access Hacks . | . . . Unauthorized Hacks 6 | . 6 . Terminals 3 | . 3 . Assimilate 1 | . 1 . Botnet 2 | . 2 . Fabricators . | . . . Repair Stations . | . . . Recycling Units 3 | . 3 . Reject 1 | . 1 . Recyclers 1 | . 1 . Mask 1 | . 1 . Scanalyzers . | . . . Garrison Access . | . . . Data Cores Recovered . | . . . Used . | . . . Hacking Detections 6 | . 6 . Full Trace Events 2 | . 2 . Feedback Events . | . . . Feedback Blocked . | . . . Robot Schematics Acquired . | . . . Robots Built . | . . . Authchips . | . . . Time . | . . . Total Robot Build Rating . | . . . Part Schematics Acquired . | . . . Parts Built . | . . . Authchips . | . . . Time . | . . . Total Part Build Rating . | . . . Parts Repaired 1 | . 1 . Time 32 | . 32 . Parts Recycled . | . . . Recycled Matter . | . . . Retrieved Matter . | . . . Retrieved Components . | . . . Parts Scanalyzed . | . . . Part Schematics Acquired . | . . . Parts Damaged . | . . . Bothacking | -11 -10 -10 ------------ Run | Yrd Mat Min Used RIF Installer . | . . . Robots Hacked . | . . . Non-combat . | . . . Combat . | . . . Robot Hacks Applied . | . . . Relay Couplers Released . | . . . Fabnet Peak Effective % . | . . . Robots Rewired . | . . . Allies Hacked . | . . . Hacks Repelled . | . . . Allies | -11 -10 -10 -------- Run | Yrd Mat Min Total Allies 1 | . 1 . Largest Group 1 | . 1 . Highest-Rated Group 10 | . 10 . Highest-Rated Ally 10 | . 10 . Total Orders 1 | . . 1 EXPLORE 1 | . . 1 Ally Attacks . | . . . Total Damage . | . . . Kills . | . . . Allies Corrupted . | . . . Allies Melted . | . . . Intel | -11 -10 -10 ------- Run | Yrd Mat Min Robot Analysis Total 1 | . 1 . Derelict Logs Recovered . | . . . Drone Launches 2 | . . 2 Drone Recoveries 2 | . . 2 Exploration | -11 -10 -10 ------------- Run | Yrd Mat Min Turns Passed 4696 | 96 3340 1260 Spaces Moved 1296 | 35 931 330 Core 2 | . 2 . Treads 1254 | . 924 330 Legs 40 | 35 5 . Wheels . | . . . Hover . | . . . Flight . | . . . Fastest Speed 120 | 120 120 320 Average Speed 262 | 120 247 320 Slowest Speed 320 | 120 320 320 Overloaded Moves . | . . . Propulsion Burnouts . | . . . Robots Hopped . | . . . Cave-ins Triggered . | . . . Exploration Rate (%) 57 | 4 99 70 Regions Visited 2 Branch Regions 1 Pre-discovered Areas . | . . . Known Exits Taken . | . . . Unknown Exits Taken 2 | 1 1 . Scrap Searched . | . . . Spaces Dug . | . . . Terrain Destroyed 37 | . 6 31 Melee . | . . . Projectile . | . . . AOE 37 | . 6 31 Terrain Rammed . | . . . Walls Destroyed . | . . . Machines Disabled . | . . . Actions | -11 -10 -10 --------- Run | Yrd Mat Min Total 2450 | 57 1879 514 Wait 1007 | . 850 157 Move 1294 | 34 930 330 Hop . | . . . Pick Up 22 | 1 19 2 Fast Attach 6 | 1 5 . Attach 3 | . . 3 Detach . | . . . Swap 19 | . 16 3 Drop 13 | . 13 . Fire 78 | 15 44 19 Melee . | . . . Ram . | . . . Kick 6 | 6 . . Crush 2 | . 2 . Escape Stasis . | . . . Rewire . | . . . Trap . | . . . Miscellaneous . | . . . Route ------- -11/Scrapyard -10/Materials (discovered 6 exits: [*Mat x3] / *Min x2 / [*Sub]) -10/Mines (discovered 1 exit: [*Sub]) History --------- Turn | Location | Event 25 | -11/Scrapyard | Discovered new exit (range 2) 97 | -11/Scrapyard | Entered Materials 240 | -10/Materials | Discovered new exit (range 4) 316 | -10/Materials | Build established: Mutant 468 | -10/Materials | Discovered new exit (range 6) 884 | -10/Materials | Discovered new exit (range 15) 1494 | -10/Materials | Discovered new exit (range 16) 1708 | -10/Materials | Discovered new exit (range 12) 1900 | -10/Materials | Repaired Shotgun 3014 | -10/Materials | Discovered new exit (range 6) 3437 | -10/Materials | Entered Mines 4138 | -10/Mines | Discovered new exit (range 13) 4565 | -10/Mines | Found the Drone Emporium 4593 | -10/Mines | Found Prototype Device 4594 | -10/Mines | Identified Sensor Drone Bay 4622 | -10/Mines | Assembled infested the area 4685 | -10/Mines | Destroyed 13 combat bots 4688 | -10/Mines | Core integrity fell below 50% 4696 | -10/Mines | Core integrity fell below 20% 4697 | -10/Mines | Destroyed by D-53 Grenadier with Mini Grenade Launcher Last Messages --------------- 04673_ System corrupted: IFF burst signal emitted. 04678_ U-05 Engineer builds a Wall. 04679_ The unstable cave ceiling collapses. 04680_ Lgt. Treads destroyed. 04681_ U-05 Engineer lays Concrete. 04682_ The unstable cave ceiling collapses. 04682_ U-05 Engineer destroyed. 04683_ The unstable cave ceiling collapses. 04683_ U-05 Engineer lays Concrete. 04684_ The unstable cave ceiling collapses. 04684_ U-05 Engineer lays Concrete. 04684_ U-05 Engineer destroyed. 04685_ The unstable cave ceiling collapses. 04691_ Shotgun destroyed. 04692_ The unstable cave ceiling collapses. 04693_ Grenade Launcher destroyed. 04694_ The unstable cave ceiling collapses. 04695_ Shield Generator destroyed. 04696_ The unstable cave ceiling collapses. 04697_ Imp. Treads destroyed. Map ----- +----------------------------------------------------+ | # #????# #??# #?????????# #### | | # ###### #??## #?????????# | | ##??#### #?????????# | | ## ###???## ##????????# | | #### ### | ##???# #????????# | | ##??# ##?#= ##?## #???###???# | | ##???## ##??# = ### #??## #?## | | #?????####???## ##?# ## | | ??????????????## #?# | | ??????????????## [ #?# | | ??????????????# ## ### ##??# # | | ??????????????# #### ##??###???###### ## | | ??????????????# #??# #??????????????## ## | | ????????###???# ##??## ##??????????????## # | | ???????## ##?## ##????####??#######??????# | | ???????# #??# ##????????##### " ##?????# | | ???????# ##?# #???###??## "##????# | | ????????# ### #### ##### # #????# | | ?????????# ## #????# | | ?????????# ### # ###### | | #????????## ###s ## ## # | | #????????## #?# # % %% # | | ########## #?# | | ##?## d[= | | ##???# d% | | ###### ##????# @ =%= !! # | | ?????# ##?????# #* ! t ## ## | | ?????## ###??????# # ######= #### ##? | | ??????####????????# [ #????#%=#??####?? | | ??????????????????###### #????# $#???????? | | ???????????????????????##### ##????# #???????? | | ???????????????????????????# #?????# #???????? | | #?####?????????????????????# #?????# #???????? | | ### ##????????????????????# #?????# #???????? | | ####?????????????????# #?????# #???????? | | ##????????????????## ##?????# #???????? | | """ ##????????????????####??????? ????????? | | """ #?????????????????????????????????????? | | # """ ##????????????????????????????????????? | | ## #????????????????????????????????????? | | ?## #????????????????????????????????????? | | ??#### ##????????????????????????????????????? | | ?????### #?????????????????????????????????????? | | ????????# #?????????????????????????????????????? | | ????????? #?????????????????????????????????????? | | ?????????? #?????????????????????????????????????? | | ??????????#?????????????????????????????????????? | | ????????????????????????????????????????????????? | | ???????????????????????????????????????????????? | | ???????????????????????????????????????????????? | +----------------------------------------------------+ Best States ------------- Heat Dissipation 25 Energy Generation 12 Energy Capacity 265 Matter Stores 300 Matter Capacity 300 Sight Range 16 Terrain Scan Density 10 Evasion (%) 55 Recoil Reduction 2 Item Schematics ----------------- None Robot Schematics ------------------ None Fabricated ------------ Nothing Alien Tech Used ----------------- None Achievements -------------- None Challenges ------------ None Game ------ Seed CompositeLaserPrototype Manual? 0 Play Time 00:28:10 Cumulative 33.3 hours Start 2024.04.16 @ 17:47:13 End 2024.04.16 @ 18:28:21 Sessions 1 Manual Loads 0 Difficulty Rogue Special Mode None Game No. 23 Rogue 23 Adventurer 0 Explorer 0 Win Type - Total 0 Types 0/0/0/0/0/0/0/0/0 Lore% 22 Gallery% 24 Achievement% 22 Wizard Run 0 Options --------- Layout 0 ASCII 0 Keyboard 0 Movement Numpad Keybinds 1 Fullscreen 1 Font 18/SmallcapsGlow Map View 76x50 Zoom Use 0% Tactical HUD 1 Map Filters NONE Filters NONE Steam 1 RUN: 031913f2-4f6c-4025-919f-056edfa13185